bitfinex-derivatives/quotes_BNBF0:USTF0_20250609
["timestamp","ask_amount","ask_price","bid_price","bid_amount"]
[1749498851909,1.08860087,659.77,659.02,0.26386225]
[1749498852112,1.08860087,659.76,659.02,0.26386225]
[1749498852311,1.08860087,659.78,659.02,0.26386225]
[1749498852511,1.08860087,659.77,659.02,0.26386225]
[1749498852715,1.08860087,659.76,659.02,0.26386225]
[1749498852911,1.08860087,659.78,659.02,0.26386225]
[1749498853111,1.08860087,659.77,659.02,0.26386225]
[1749498853317,1.08860087,659.76,659.02,0.26386225]
[1749498853514,1.08860087,659.78,659.02,0.26386225]
[1749498853713,1.08860087,659.77,659.02,0.26386225]
[1749498853913,1.08860087,659.76,659.02,0.26386225]
[1749498854213,1.08860087,659.78,659.02,0.26386225]
[1749498854512,1.08860087,659.77,659.02,0.26386225]
[1749498854717,1.08860087,659.76,659.02,0.26386225]
[1749498855017,1.08860087,659.78,659.02,0.26386225]
[1749498855216,0.26384324,659.79,659.02,0.26386225]
[1749498855217,1.08860087,659.77,659.02,0.26386225]
[1749498855412,1.08860087,659.76,659.02,0.26386225]
[1749498855613,1.08860087,659.75,659.02,0.26386225]
[1749498855817,1.08860087,659.74,659.02,0.26386225]
[1749498856113,1.08860087,659.78,659.02,0.26386225]
[1749498856312,1.08860087,659.77,659.02,0.26386225]
[1749498856516,0.26384324,659.79,659.02,0.26386225]
[1749498856517,1.08860087,659.76,659.02,0.26386225]
[1749498856717,1.08860087,659.75,659.02,0.26386225]
[1749498856918,1.08860087,659.74,659.02,0.26386225]
[1749498857118,1.08860087,659.78,659.02,0.26386225]
[1749498857316,1.08860087,659.77,659.02,0.26386225]
[1749498857514,1.08860087,659.76,659.02,0.26386225]
[1749498857720,1.08860087,659.75,659.02,0.26386225]
[1749498857917,1.08860087,659.74,659.02,0.26386225]
[1749498858120,1.08860087,659.78,659.02,0.26386225]
[1749498858320,1.08860087,659.77,659.02,0.26386225]
[1749498858620,0.26384324,659.79,659.02,0.26386225]
[1749498858621,1.08860087,659.76,659.02,0.26386225]
[1749498858822,1.08860087,659.75,659.02,0.26386225]
[1749498859121,0.26384324,659.79,659.02,0.26386225]
[1749498859122,1.09119458,659.78,659.02,0.26386225]
[1749498859320,1.09119458,659.77,659.02,0.26386225]
[1749498859617,0.26384324,659.79,659.02,0.26386225]
[1749498859618,1.09119458,659.76,659.02,0.26386225]
[1749498859921,1.09119458,659.78,659.02,0.26386225]
[1749498860218,1.09119458,659.77,659.02,0.26386225]
[1749498860420,1.09119458,659.76,659.02,0.26386225]
[1749498860618,1.09119458,659.75,659.02,0.26386225]
[1749498860817,1.09119458,659.78,659.02,0.26386225]
[1749498861017,1.09119458,659.77,659.02,0.26386225]
[1749498861220,1.09119458,659.76,659.02,0.26386225]
[1749498861419,1.09119458,659.75,659.02,0.26386225]
[1749498861619,1.09119458,659.78,659.02,0.26386225]
[1749498861918,1.09119458,659.77,659.02,0.26386225]
[1749498862117,1.09119458,659.76,659.02,0.26386225]
[1749498862318,1.09119458,659.75,659.02,0.26386225]
[1749498862523,1.09119458,659.78,659.02,0.26386225]
[1749498862818,1.09119458,659.77,659.02,0.26386225]
[1749498863122,1.09119458,659.76,659.02,0.26386225]
[1749498863323,1.09119458,659.75,659.02,0.26386225]
[1749498863624,1.09119458,659.74,659.02,0.26386225]
[1749498863818,1.09119458,659.78,659.02,0.26386225]
[1749498864022,1.09119458,659.77,659.02,0.26386225]
[1749498864218,1.09119458,659.76,659.02,0.26386225]
[1749498864522,1.09119458,659.75,659.02,0.26386225]
[1749498864723,1.09119458,659.74,659.02,0.26386225]
[1749498864923,1.09119458,659.78,659.02,0.26386225]
[1749498865121,1.09119458,659.77,659.02,0.26386225]
[1749498865320,1.09119458,659.76,659.02,0.26386225]
[1749498865523,1.09119458,659.75,659.02,0.26386225]
[1749498865823,1.09119458,659.74,659.02,0.26386225]
[1749498866024,1.09119458,659.78,659.02,0.26386225]
[1749498866221,1.09119458,659.77,659.02,0.26386225]
[1749498866420,1.09119458,659.76,659.02,0.26386225]
[1749498866724,1.09119458,659.75,659.02,0.26386225]
[1749498866921,1.09119458,659.74,659.02,0.26386225]
[1749498867125,1.09119458,659.73,659.02,0.26386225]
[1749498867323,1.09119458,659.78,659.02,0.26386225]
[1749498867526,1.09119458,659.77,659.02,0.26386225]
[1749498867727,1.09119458,659.76,659.02,0.26386225]
[1749498868020,1.09119458,659.75,659.02,0.26386225]
[1749498868222,1.09119458,659.74,659.02,0.26386225]
[1749498868427,1.09119458,659.73,659.02,0.26386225]
[1749498868726,1.09119458,659.72,659.02,0.26386225]
[1749498868926,1.09119458,659.71,659.02,0.26386225]
[1749498869127,1.09119458,659.78,659.02,0.26386225]
[1749498869326,1.09119458,659.77,659.02,0.26386225]
[1749498869622,1.0923227,659.76,659.02,0.26386225]
[1749498869827,1.0923227,659.75,659.02,0.26386225]
[1749498870022,1.0923227,659.74,659.02,0.26386225]
[1749498870327,1.0923227,659.73,659.02,0.26386225]
[1749498870528,1.0923227,659.72,658.86,0.30355462]
[1749498870828,0.26384324,659.79,658.86,0.30355462]
[1749498870829,1.0923227,659.71,658.91,0.26390827]
[1749498871025,1.0923227,659.7,658.91,0.26390827]
[1749498871230,1.0923227,659.69,658.91,0.26390827]
[1749498871423,1.0923227,659.68,658.91,0.26390827]
[1749498871623,1.0923227,659.67,658.91,0.26390827]
[1749498871929,1.0923227,659.66,658.91,0.26390827]
[1749498872225,1.0923227,659.78,658.91,0.26390827]
[1749498872525,1.0923227,659.77,658.91,0.26390827]
[1749498872726,1.0923227,659.76,658.91,0.26390827]
[1749498872925,1.0923227,659.75,658.91,0.26390827]
[1749498873122,1.0923227,659.74,658.91,0.26390827]
[1749498873327,1.0923227,659.73,658.91,0.26390827]
[1749498873529,1.0923227,659.72,658.91,0.26390827]
[1749498873728,1.0923227,659.71,658.91,0.26390827]
[1749498873927,1.0923227,659.7,658.91,0.26390827]
[1749498874125,1.0923227,659.69,658.91,0.26390827]
[1749498874430,1.0923227,659.68,658.91,0.26390827]
[1749498874627,1.0923227,659.67,658.91,0.26390827]
[1749498874832,1.0923227,659.66,658.91,0.26390827]
[1749498875029,1.0923227,659.65,658.91,0.26390827]
[1749498875235,1.0923227,659.64,658.91,0.26390827]
[1749498875436,1.0923227,659.78,658.91,0.26390827]
[1749498875632,1.0923227,659.77,658.91,0.26390827]
[1749498875829,1.0923227,659.76,658.91,0.26390827]
[1749498876033,1.0923227,659.75,658.91,0.26390827]
[1749498876232,1.0923227,659.74,658.91,0.26390827]
[1749498876433,1.0923227,659.73,658.91,0.26390827]
[1749498876635,1.0923227,659.72,658.91,0.26390827]
[1749498876830,1.0923227,659.71,658.91,0.26390827]
[1749498877036,1.0923227,659.7,658.91,0.26390827]
[1749498877237,1.0923227,659.69,658.91,0.26390827]
[1749498877434,1.0923227,659.68,658.91,0.26390827]
[1749498877734,1.0923227,659.67,658.91,0.26390827]
[1749498877933,1.0923227,659.66,658.91,0.26390827]
[1749498878135,1.0923227,659.65,658.91,0.26390827]
[1749498878340,1.0923227,659.64,658.91,0.26390827]
[1749498878538,1.0923227,659.63,658.91,0.26390827]
[1749498878737,3.88509865,659.75,658.91,0.26390827]
[1749498878937,1.0923227,659.74,658.91,0.26390827]
[1749498879141,1.0923227,659.73,658.91,0.26390827]
[1749498879441,1.0923227,659.72,658.91,0.26390827]
[1749498879640,1.0923227,659.71,658.91,0.26390827]
[1749498879838,1.0923227,659.7,658.91,0.26390827]
[1749498880039,1.0923227,659.69,658.91,0.26390827]
[1749498880339,1.09234355,659.68,658.91,0.26390827]
[1749498880536,1.09234355,659.67,658.91,0.26390827]
[1749498880740,1.09234355,659.66,658.91,0.26390827]
[1749498880936,1.09234355,659.65,658.91,0.26390827]
[1749498881141,1.09234355,659.64,658.91,0.26390827]
[1749498881336,1.09234355,659.63,658.91,0.26390827]
[1749498881539,1.09234355,659.62,658.91,0.26390827]
[1749498881738,3.35053334,659.71,658.91,0.26390827]
[1749498881941,1.09234355,659.7,658.91,0.26390827]
[1749498882137,1.09234355,659.69,658.91,0.26390827]
[1749498882339,1.09234355,659.68,658.91,0.26390827]
[1749498882539,1.09234355,659.67,658.91,0.26390827]
[1749498882740,1.09234355,659.66,658.91,0.26390827]
[1749498883039,1.09234355,659.65,658.91,0.26390827]
[1749498883341,1.09234355,659.64,658.91,0.26390827]
[1749498883540,1.09234355,659.78,658.91,0.26390827]
[1749498883744,1.09234355,659.77,658.91,0.26390827]
[1749498884041,1.09234355,659.76,658.91,0.26390827]
[1749498884247,1.09234355,659.75,658.91,0.26390827]
[1749498884447,1.09234355,659.74,658.91,0.26390827]
[1749498884744,1.09234355,659.73,658.91,0.26390827]
[1749498884947,1.09234355,659.72,658.91,0.26390827]
[1749498885147,1.09234355,659.71,658.91,0.26390827]
[1749498885349,1.09234355,659.7,658.91,0.26390827]
[1749498885544,1.09234355,659.69,658.91,0.26390827]
[1749498885745,1.09234355,659.68,658.91,0.26390827]
[1749498885945,1.09234355,659.67,658.91,0.26390827]
[1749498886244,1.09234355,659.66,658.91,0.26390827]
[1749498886449,1.09234355,659.65,658.91,0.26390827]
[1749498886647,1.09234355,659.78,658.91,0.26390827]
[1749498886844,1.09234355,659.77,658.91,0.26390827]
[1749498887047,1.09234355,659.76,658.91,0.26390827]
[1749498887247,0.26384324,659.79,658.91,0.26390827]
[1749498887248,1.09234355,659.75,658.91,0.26390827]
[1749498887447,1.09234355,659.74,658.91,0.26390827]
[1749498887648,1.09234355,659.73,658.91,0.26390827]
[1749498887847,1.09234355,659.72,658.91,0.26390827]
[1749498888050,1.09234355,659.71,658.91,0.26390827]
[1749498888246,1.09234355,659.7,658.91,0.26390827]
[1749498888545,1.09234355,659.69,658.91,0.26390827]
[1749498888749,1.09234355,659.68,658.91,0.26390827]
[1749498888947,1.09234355,659.67,658.91,0.26390827]
[1749498889146,1.09234355,659.66,658.91,0.26390827]
[1749498889348,1.09234355,659.78,658.91,0.26390827]
[1749498889553,1.09234355,659.77,658.91,0.26390827]
[1749498889751,1.09234355,659.76,658.91,0.26390827]
[1749498889952,1.09234355,659.75,658.91,0.26390827]
[1749498890246,1.09234355,659.74,658.91,0.26390827]
[1749498890453,1.09234355,659.73,658.91,0.26390827]
[1749498890652,1.09234355,659.72,658.91,0.26390827]
[1749498890952,1.09234355,659.71,658.91,0.26390827]
[1749498891152,1.09234355,659.7,658.91,0.26390827]
[1749498891355,1.09234355,659.69,658.91,0.26390827]
[1749498891552,1.09234355,659.78,658.91,0.26390827]
[1749498891749,1.09234355,659.77,658.91,0.26390827]
[1749498892047,1.09234355,659.76,658.91,0.26390827]
[1749498892249,1.09234355,659.75,658.91,0.26390827]
[1749498892450,1.09234355,659.74,658.91,0.26390827]
[1749498892648,1.09234355,659.73,658.91,0.26390827]
[1749498892848,1.09234355,659.72,658.91,0.26390827]
[1749498893151,1.09234355,659.71,658.91,0.26390827]
[1749498893349,1.09234355,659.7,658.91,0.26390827]
[1749498893548,1.09234355,659.69,658.91,0.26390827]
[1749498893748,1.09234355,659.78,658.91,0.26390827]
[1749498894052,1.09234355,659.77,658.91,0.26390827]
[1749498894253,1.09234355,659.76,658.91,0.26390827]
[1749498894453,1.09234355,659.75,658.91,0.26390827]
[1749498894652,1.09234355,659.74,658.91,0.26390827]
[1749498894952,1.09234355,659.73,658.91,0.26390827]
[1749498895153,1.09234355,659.72,658.91,0.26390827]
[1749498895447,1.09234355,659.71,658.91,0.26390827]
[1749498895649,1.09234355,659.7,658.91,0.26390827]
[1749498895952,1.09234355,659.69,658.91,0.26390827]
[1749498896148,1.09234355,659.73,658.91,0.26390827]
[1749498896452,1.09234355,659.72,658.91,0.26390827]
[1749498896652,1.09234355,659.71,658.91,0.26390827]
[1749498896850,1.09234355,659.7,658.91,0.26390827]
[1749498897053,1.09234355,659.69,658.91,0.26390827]
[1749498897250,1.62625455,659.76,658.91,0.26390827]
[1749498897454,1.09234355,659.75,658.91,0.26390827]
[1749498897656,1.09234355,659.74,658.91,0.26390827]
[1749498897855,1.09234355,659.73,658.91,0.26390827]
[1749498898050,1.09234355,659.72,658.91,0.26390827]
[1749498898352,1.09234355,659.71,658.91,0.26390827]
[1749498898555,1.09234355,659.7,658.91,0.26390827]
[1749498898754,1.09234355,659.69,658.91,0.26390827]
[1749498898953,1.09234355,659.68,658.91,0.26390827]
[1749498899152,1.09234355,659.73,658.91,0.26390827]
[1749498899452,1.09234355,659.72,658.91,0.26390827]
[1749498899752,1.09234355,659.71,658.91,0.26390827]
[1749498899952,1.09234355,659.7,658.91,0.26390827]
[1749498900255,1.09234355,659.69,658.91,0.26390827]
[1749498900457,1.09234355,659.78,658.91,0.26390827]
[1749498900653,1.09234355,659.77,658.91,0.26390827]
[1749498900856,1.09234355,659.76,658.91,0.26390827]
[1749498901056,1.09234355,659.75,658.91,0.26390827]
[1749498901256,1.09234355,659.74,658.91,0.26390827]
[1749498901458,1.09234355,659.73,658.91,0.26390827]
[1749498901653,1.09234355,659.72,658.91,0.26390827]
[1749498901851,1.09234355,659.71,658.91,0.26390827]
[1749498902052,1.09234355,659.7,658.91,0.26390827]
[1749498902253,1.09234355,659.69,658.91,0.26390827]
[1749498902455,2.2710294,659.74,658.91,0.26390827]
[1749498902654,1.09234355,659.73,658.91,0.26390827]
[1749498902854,1.09234355,659.72,658.91,0.26390827]
[1749498903157,1.09234355,659.71,658.91,0.26390827]
[1749498903358,1.09234355,659.7,658.91,0.26390827]
[1749498903555,1.09234355,659.69,658.91,0.26390827]
[1749498903860,3.88673296,659.77,658.91,0.26390827]
[1749498904055,3.88673648,659.76,658.91,0.26390827]
[1749498904356,2.80457873,659.75,658.91,0.26390827]
[1749498904559,2.27096035,659.74,658.91,0.26390827]
[1749498904760,2.27094434,659.73,658.91,0.26390827]
[1749498904960,1.09234355,659.72,658.91,0.26390827]
[1749498905157,1.09234355,659.71,658.91,0.26390827]
[1749498905360,1.09234355,659.7,658.91,0.26390827]
[1749498905656,1.09234355,659.69,658.91,0.26390827]
[1749498905858,1.09234355,659.68,658.91,0.26390827]
[1749498906054,1.09234355,659.78,658.91,0.26390827]
[1749498906358,1.09234355,659.77,658.91,0.26390827]
[1749498906659,1.09234355,659.76,658.86,0.30355462]
[1749498906857,2.22327394,659.75,658.86,0.30355462]
[1749498907157,3.88568187,659.74,658.86,0.30355462]
[1749498907460,2.80539832,659.73,658.86,0.30355462]
[1749498907655,2.8053589,659.72,658.86,0.30355462]
[1749498907861,2.17281943,659.71,658.86,0.30355462]
[1749498908062,2.8053289,659.7,658.86,0.30355462]
[1749498908264,3.88571188,659.69,658.86,0.30355462]
[1749498908562,2.17277344,659.68,658.86,0.30355462]
[1749498908758,3.88487171,659.67,658.86,0.30355462]
[1749498908962,2.27165853,659.66,658.86,0.30355462]
[1749498909259,1.09234355,659.65,658.86,0.30355462]
[1749498909464,1.09234355,659.64,658.86,0.30355462]
[1749498909664,1.09234355,659.63,658.86,0.30355462]
[1749498909964,2.27170538,659.71,658.86,0.30355462]
[1749498910156,2.17198171,659.7,658.86,0.30355462]
[1749498910359,2.17198365,659.69,658.86,0.30355462]
[1749498910562,2.17082662,659.68,658.86,0.30355462]
[1749498910863,2.7046165,659.67,658.86,0.30355462]
[1749498911062,2.27170022,659.66,658.86,0.30355462]
[1749498911364,2.27170859,659.65,658.86,0.30355462]
[1749498911563,1.09234355,659.64,658.86,0.30355462]
[1749498911858,3.88398524,659.74,658.86,0.30355462]
[1749498912162,3.88397851,659.73,658.86,0.30355462]
[1749498912362,3.88397851,659.72,658.86,0.30355462]
[1749498912558,1.09234355,659.71,658.86,0.30355462]
[1749498912762,1.09234355,659.7,658.86,0.30355462]
[1749498913062,1.09234355,659.69,658.86,0.30355462]
[1749498913257,1.09234355,659.68,658.86,0.30355462]
[1749498913458,1.09234355,659.67,658.86,0.30355462]
[1749498913661,1.09234355,659.66,658.86,0.30355462]
[1749498913860,1.09234355,659.65,658.86,0.30355462]
[1749498914160,2.80382895,659.71,658.86,0.30355462]
[1749498914362,2.27031413,659.7,658.86,0.30355462]
[1749498914563,3.88182895,659.69,658.86,0.30355462]
[1749498914760,1.09234355,659.68,658.86,0.30355462]
[1749498914958,1.09234355,659.67,658.86,0.30355462]
[1749498915165,1.09234355,659.66,658.86,0.30355462]
[1749498915360,2.16908415,659.72,658.86,0.30355462]
[1749498915564,2.80468198,659.71,658.86,0.30355462]
[1749498915765,3.88142298,659.7,658.86,0.30355462]
[1749498915962,2.70258553,659.69,658.86,0.30355462]
[1749498916265,2.70249519,659.68,658.86,0.30355462]
[1749498916460,2.27120739,659.67,658.86,0.30355462]
[1749498916665,2.27120734,659.66,658.86,0.30355462]
[1749498916961,1.09234355,659.65,658.86,0.30355462]
[1749498917161,3.88005773,659.76,658.86,0.30355462]
[1749498917364,2.70202245,659.75,658.86,0.30355462]
[1749498917566,2.27019437,659.74,658.86,0.30355462]
[1749498917763,1.09234355,659.73,658.86,0.30355462]
[1749498917966,1.09234355,659.72,658.86,0.30355462]
[1749498918169,1.09234355,659.71,658.86,0.30355462]
[1749498918365,1.09234355,659.7,658.86,0.30355462]
[1749498918568,1.09234355,659.69,658.86,0.30355462]
[1749498918865,1.09234355,659.68,658.86,0.30355462]
[1749498919065,1.09234355,659.67,658.86,0.30355462]
[1749498919369,3.87955821,659.71,658.86,0.30355462]
[1749498919569,1.13093039,659.77,658.86,0.30355462]
[1749498919570,1.09234355,659.7,658.86,0.30355462]
[1749498919766,1.09234355,659.69,658.86,0.30355462]
[1749498920066,1.09234355,659.68,658.86,0.30355462]
[1749498920266,1.09234355,659.67,658.86,0.30355462]
[1749498920466,1.09234355,659.73,658.86,0.30355462]
[1749498920672,1.09234355,659.72,658.86,0.30355462]
[1749498920969,1.09234355,659.71,658.86,0.30355462]
[1749498921270,1.09234355,659.7,658.86,0.30355462]
[1749498921466,1.09234355,659.69,658.86,0.30355462]
[1749498921665,1.09234355,659.68,658.86,0.30355462]
[1749498921965,1.09234355,659.67,658.86,0.30355462]
[1749498922170,3.88024439,659.7,658.86,0.30355462]
[1749498922370,1.09234355,659.69,658.86,0.30355462]
[1749498922571,1.09234355,659.68,658.86,0.30355462]
[1749498922866,1.09234355,659.67,658.86,0.30355462]
[1749498923068,2.70340247,659.74,658.86,0.30355462]
[1749498923367,1.09234355,659.73,658.86,0.30355462]
[1749498923572,1.09234355,659.72,658.86,0.30355462]
[1749498923869,1.09234355,659.71,658.86,0.30355462]
[1749498924072,1.09234355,659.7,658.86,0.30355462]
[1749498924368,1.09234355,659.69,658.86,0.30355462]
[1749498924570,1.09234355,659.68,658.86,0.30355462]
[1749498924773,2.70350593,659.73,658.86,0.30355462]
[1749498924969,2.27163564,659.72,658.86,0.30355462]
[1749498925170,1.09234355,659.71,658.86,0.30355462]
[1749498925367,1.09234355,659.7,658.86,0.30355462]
[1749498925571,1.09234355,659.69,658.86,0.30355462]
[1749498925772,1.09234355,659.68,658.86,0.30355462]
[1749498925967,1.09234355,659.67,658.86,0.30355462]
[1749498926172,1.62575522,659.73,658.86,0.30355462]
[1749498926371,1.09234355,659.72,658.86,0.30355462]
[1749498926574,1.09234355,659.71,658.86,0.30355462]
[1749498926776,1.09234355,659.7,658.86,0.30355462]
[1749498927069,1.09234355,659.69,658.86,0.30355462]
[1749498927269,1.09234355,659.68,658.86,0.30355462]
[1749498927473,1.09234355,659.67,658.86,0.30355462]
[1749498927673,1.09234355,659.66,658.86,0.30355462]
[1749498927871,3.88444298,659.74,658.86,0.30355462]
[1749498928070,2.27208166,659.73,658.86,0.30355462]
[1749498928276,3.88542508,659.72,658.86,0.30355462]
[1749498928570,3.35350485,659.71,658.86,0.30355462]
[1749498928769,2.27388035,659.7,658.86,0.30355462]
[1749498928972,1.09234355,659.69,658.86,0.30355462]
[1749498929169,1.09234355,659.68,658.86,0.30355462]
[1749498929373,1.09234355,659.67,658.86,0.30355462]
[1749498929575,1.09234355,659.66,658.86,0.30355462]
[1749498929773,1.09234355,659.65,658.86,0.30355462]
[1749498929975,1.09234355,659.64,658.86,0.30355462]
[1749498930172,2.80815293,659.71,658.86,0.30355462]
[1749498930372,3.35522178,659.7,658.86,0.30355462]
[1749498930571,1.09234355,659.69,658.86,0.30355462]
[1749498930777,1.09234355,659.68,658.86,0.30355462]
[1749498931074,1.09234355,659.67,658.86,0.30355462]
[1749498931378,1.09234355,659.66,658.86,0.30355462]
[1749498931672,1.09234355,659.65,658.86,0.30355462]
[1749498931877,1.09234355,659.64,658.86,0.30355462]
[1749498932073,1.09234355,659.63,658.86,0.30355462]
[1749498932380,3.35497397,659.69,658.86,0.30355462]
[1749498932578,2.27449594,659.68,658.86,0.30355462]
[1749498932877,2.27538052,659.67,658.86,0.30355462]
[1749498933075,1.09234355,659.66,658.86,0.30355462]
[1749498933374,1.09234355,659.65,658.86,0.30355462]
[1749498933579,1.09234355,659.64,658.86,0.30355462]
[1749498933779,1.09234355,659.63,658.86,0.30355462]
[1749498933978,1.09234355,659.62,658.86,0.30355462]
[1749498934275,3.35606601,659.73,658.86,0.30355462]
[1749498934475,1.09234355,659.72,658.86,0.30355462]
[1749498934673,1.09234355,659.71,658.86,0.30355462]
[1749498934877,1.09234355,659.7,658.86,0.30355462]
[1749498935078,1.09234355,659.69,658.86,0.30355462]
[1749498935276,1.09234355,659.68,658.86,0.30355462]
[1749498935481,1.09234355,659.67,658.86,0.30355462]
[1749498935680,1.09234355,659.66,658.86,0.30355462]
[1749498935883,1.09234355,659.65,658.86,0.30355462]
[1749498936082,1.09234355,659.64,658.86,0.30355462]
[1749498936281,1.09234355,659.63,658.86,0.30355462]
[1749498936481,1.09234355,659.62,658.86,0.30355462]
[1749498936777,1.09002341,659.61,658.86,0.30355462]
[1749498936982,2.70489682,659.7,658.86,0.30355462]
[1749498937183,1.09002341,659.69,658.86,0.30355462]
[1749498937381,1.09002341,659.68,658.86,0.30355462]
[1749498937677,1.13002458,659.77,658.86,0.30355462]
[1749498937678,1.09002341,659.67,658.86,0.30355462]
[1749498937880,1.09002341,659.66,658.86,0.30355462]
[1749498938085,1.09002341,659.65,658.86,0.30355462]
[1749498938285,1.09002341,659.64,658.86,0.30355462]
[1749498938485,1.09002341,659.63,658.86,0.30355462]
[1749498938686,1.09002341,659.62,658.86,0.30355462]
[1749498938985,1.09002341,659.61,658.86,0.30355462]
[1749498939282,1.09002341,659.6,658.86,0.30355462]
[1749498939488,1.09002341,659.74,658.86,0.30355462]
[1749498939689,1.09002341,659.73,658.86,0.30355462]
[1749498939885,1.09002341,659.72,658.86,0.30355462]
[1749498940085,1.09002341,659.71,658.86,0.30355462]
[1749498940383,1.09002341,659.7,658.86,0.30355462]
[1749498940688,1.09002341,659.69,658.86,0.30355462]
[1749498940886,1.09002341,659.68,658.86,0.30355462]
[1749498941082,1.09002341,659.67,658.86,0.30355462]
[1749498941382,1.09002341,659.66,658.86,0.30355462]
[1749498941588,1.09002341,659.65,658.86,0.30355462]
[1749498941886,1.09002341,659.64,658.86,0.30355462]
[1749498942088,1.09002341,659.63,658.86,0.30355462]
[1749498942291,1.09002341,659.62,658.86,0.30355462]
[1749498942489,1.09002341,659.61,658.86,0.30355462]
[1749498942787,2.80679529,659.74,658.86,0.30355462]
[1749498943086,2.27272723,659.73,658.86,0.30355462]
[1749498943287,1.09002341,659.72,658.86,0.30355462]
[1749498943489,1.09002341,659.71,658.86,0.30355462]
[1749498943687,1.09002341,659.7,658.86,0.30355462]
[1749498943887,1.09002341,659.69,658.86,0.30355462]
[1749498944191,1.09002341,659.68,658.86,0.30355462]
[1749498944391,1.09002341,659.67,658.86,0.30355462]
[1749498944590,1.09002341,659.66,658.86,0.30355462]
[1749498944789,1.09002341,659.65,658.86,0.30355462]
[1749498944992,1.09002341,659.64,658.86,0.30355462]
[1749498945290,1.09002341,659.63,658.86,0.30355462]
[1749498945496,1.09002341,659.62,658.86,0.30355462]
[1749498945690,1.09002341,659.61,658.86,0.30355462]
[1749498945895,1.09002341,659.6,658.86,0.30355462]
[1749498946191,2.27304636,659.69,658.86,0.30355462]
[1749498946397,2.27304659,659.68,658.86,0.30355462]
[1749498946695,2.27304942,659.67,658.86,0.30355462]
[1749498946893,1.09002341,659.66,658.86,0.30355462]
[1749498947092,1.09002341,659.65,658.86,0.30355462]
[1749498947391,1.09002341,659.64,658.86,0.30355462]
[1749498947593,1.09002341,659.63,658.86,0.30355462]
[1749498947796,1.09002341,659.62,658.86,0.30355462]
[1749498947993,1.09002341,659.61,658.86,0.30355462]
[1749498948292,1.09002341,659.6,658.86,0.30355462]
[1749498948496,2.2742696,659.72,658.86,0.30355462]
[1749498948697,2.17366533,659.71,658.86,0.30355462]
[1749498948897,2.80864151,659.7,658.86,0.30355462]
[1749498949096,1.09002341,659.69,658.86,0.30355462]
[1749498949293,1.09002341,659.68,658.86,0.30355462]
[1749498949496,1.09002341,659.67,658.86,0.30355462]
[1749498949794,1.09002341,659.66,658.86,0.30355462]
[1749498950093,1.09002341,659.65,658.86,0.30355462]
[1749498950297,1.09002341,659.64,658.86,0.30355462]
[1749498950495,1.09002341,659.63,658.86,0.30355462]
[1749498950698,1.09002341,659.62,658.86,0.30355462]
[1749498950898,1.09002341,659.61,658.86,0.30355462]
[1749498951197,1.09002341,659.6,658.86,0.30355462]
[1749498951394,1.09002341,659.59,658.86,0.30355462]
[1749498951595,3.35833465,659.74,658.86,0.30355462]
[1749498951798,2.7083525,659.73,658.86,0.30355462]
[1749498952001,2.27446052,659.72,658.86,0.30355462]
[1749498952199,2.17390808,659.71,658.86,0.30355462]
[1749498952395,3.89300245,659.7,658.86,0.30355462]
[1749498952595,2.70842646,659.69,658.86,0.30355462]
[1749498952796,1.09002341,659.68,658.86,0.30355462]
[1749498953096,1.09002341,659.67,658.86,0.30355462]
[1749498953399,1.09002341,659.66,658.86,0.30355462]
[1749498953595,1.09002341,659.65,658.86,0.30355462]
[1749498953795,1.09002341,659.64,658.86,0.30355462]
[1749498954095,1.09002341,659.63,658.86,0.30355462]
[1749498954296,1.09002341,659.62,658.86,0.30355462]
[1749498954498,1.09002341,659.61,658.86,0.30355462]
[1749498954697,1.09002341,659.6,658.86,0.30355462]
[1749498954898,1.09002341,659.59,658.86,0.30355462]
[1749498955198,1.09002341,659.58,658.86,0.30355462]
[1749498955402,1.09002341,659.57,658.86,0.30355462]
[1749498955699,2.17322939,659.71,658.86,0.30355462]
[1749498955898,1.13002458,659.75,658.86,0.30355462]
[1749498955899,3.35781447,659.7,658.86,0.30355462]
[1749498956197,2.80914156,659.69,658.86,0.30355462]
[1749498956500,3.35778495,659.68,658.86,0.30355462]
[1749498956703,3.35779638,659.67,658.86,0.30355462]
[1749498956899,1.13002458,659.76,658.86,0.30355462]
[1749498956900,2.27464675,659.66,658.86,0.30355462]
[1749498957099,1.09002341,659.65,658.86,0.30355462]
[1749498957299,1.09002341,659.64,658.86,0.30355462]
[1749498957499,1.09002341,659.63,658.86,0.30355462]
[1749498957699,1.09002341,659.62,658.86,0.30355462]
[1749498958000,1.09002341,659.61,658.86,0.30355462]
[1749498958197,1.09002341,659.6,658.86,0.30355462]
[1749498958402,1.09002341,659.59,658.86,0.30355462]
[1749498958599,1.09002341,659.58,658.86,0.30355462]
[1749498958900,1.09002341,659.57,658.86,0.30355462]
[1749498959102,1.09002341,659.56,658.86,0.30355462]
[1749498959296,1.09002341,659.55,658.86,0.30355462]
[1749498959502,2.70775665,659.69,658.86,0.30355462]
[1749498959698,2.27355634,659.68,658.86,0.30355462]
[1749498959899,1.62470484,659.67,658.86,0.30355462]
[1749498960102,1.09002341,659.66,658.86,0.30355462]
[1749498960296,1.09002341,659.65,658.86,0.30355462]
[1749498960498,1.09002341,659.64,658.86,0.30355462]
[1749498960697,1.09002341,659.63,658.86,0.30355462]
[1749498960903,1.09002341,659.62,658.86,0.30355462]